fUSD/lending_fUSD_20260515
["ID","MTS","AMOUNT","RATE_DAILY","PERIOD"]
[422333414,1778837440000,-314.0,0.000159,2]
[422333409,1778837440000,-150.0,0.000159,2]
[422333412,1778837440000,-150.0,0.000159,2]
[422333407,1778837440000,-150.0,0.000159,2]
[422333420,1778837440000,-300.0,0.00016,2]
[422333427,1778837440000,-500.0,0.00016377,2]
[422333425,1778837440000,-623.0,0.00016305,2]
[422333436,1778837440000,-500.0,0.00016377,2]
[422333434,1778837440000,-500.0,0.00016377,2]
[422333438,1778837440000,-500.0,0.00016377,2]
[422333431,1778837440000,-500.0,0.00016377,2]
[422333440,1778837440000,-500.0,0.00016377,2]
[422333443,1778837440000,-500.0,0.00016377,2]
[422333447,1778837440000,-150.0,0.00016438,2]
[422333327,1778837440000,-151.0,0.00015,2]
[422333390,1778837440000,-200.0,0.00015609,2]
[422333401,1778837440000,-200.0,0.00015746,2]
[422333429,1778837440000,-500.0,0.00016377,2]
[422333386,1778837440000,-308.0,0.000156,2]
[422333392,1778837440000,-200.0,0.00015609,2]
[422333346,1778837440000,-433.0,0.0001501,2]
[422333350,1778837440000,-410.848212,0.00015068,2]
[422333342,1778837440000,-151.0,0.00015,2]
[422333338,1778837440000,-151.0,0.00015,2]
[422333336,1778837440000,-151.0,0.00015,2]
[422333354,1778837440000,-410.848212,0.00015068,2]
[422333331,1778837440000,-173.265539,0.00015,2]
[422333348,1778837440000,-240.44,0.00015068,2]
[422333334,1778837440000,-151.0,0.00015,2]
[422333344,1778837440000,-151.0,0.00015,2]
[422333340,1778837440000,-151.0,0.00015,2]
[422333356,1778837440000,-410.848212,0.00015068,2]
[422333351,1778837440000,-410.848212,0.00015068,2]
[422333360,1778837440000,-200.0,0.0001515,2]
[422333357,1778837440000,-500.0,0.0001513,2]
[422333381,1778837440000,-200.0,0.00015455,2]
[422333378,1778837440000,-333.0,0.00015404,2]
[422333368,1778837440000,-204.0,0.00015282,2]
[422333372,1778837440000,-200.0,0.00015301,2]
[422333376,1778837440000,-671.0,0.00015365,2]
[422333362,1778837440000,-200.0,0.0001515,2]
[422333364,1778837440000,-180.27312146,0.0001519,2]
[422333370,1778837440000,-200.0,0.00015301,2]
[422333369,1778837440000,-587.0,0.00015282,2]
[422333366,1778837440000,-1179.0,0.0001526,5]
[422333374,1778837440000,-167.16,0.00015342,2]
[422333495,1778837441000,-174.61919141,0.00016886,2]
[422333503,1778837441000,-187.78006525,0.00016886,2]
[422333497,1778837441000,-151.0,0.00016886,2]
[422333499,1778837441000,-151.0,0.00016886,2]
[422333508,1778837441000,-151.0,0.00016886,2]
[422333512,1778837441000,-151.0,0.00016886,2]
[422333510,1778837441000,-1865.36488657,0.00016886,2]
[422333506,1778837441000,-151.0,0.00016886,2]
[422333526,1778837441000,-151.0,0.00016886,2]
[422333519,1778837441000,-151.0,0.00016886,2]
[422333515,1778837441000,-151.0,0.00016886,2]
[422333524,1778837441000,-151.0,0.00016886,2]
[422333517,1778837441000,-151.0,0.00016886,2]
[422333530,1778837441000,-151.0,0.00016886,2]
[422333528,1778837441000,-151.0,0.00016886,2]
[422333532,1778837441000,-151.0,0.00016886,2]
[422333501,1778837441000,-151.0,0.00016886,2]
[422333522,1778837441000,-151.0,0.00016886,2]
[422333490,1778837441000,-646.65982734,0.00016886,2]
[422333454,1778837441000,-207.886579,0.00016438,2]
[422333493,1778837441000,-200.0,0.00016886,2]
[422333550,1778837441000,-151.0,0.00016996,2]
[422333450,1778837441000,-447.77769107,0.00016438,2]
[422333452,1778837441000,-1915.7,0.00016438,2]
[422333465,1778837441000,-453.626564,0.00016438,2]
[422333467,1778837441000,-453.626564,0.00016438,2]
[422333471,1778837441000,-151.0,0.00016438,2]
[422333469,1778837441000,-453.626564,0.00016438,2]
[422333457,1778837441000,-207.886579,0.00016438,2]
[422333486,1778837441000,-161.45,0.00016844,2]
[422333459,1778837441000,-207.886579,0.00016438,2]
[422333463,1778837441000,-453.626564,0.00016438,2]
[422333476,1778837441000,-164.16086875,0.00016507,2]
[422333474,1778837441000,-473.44,0.000165,2]
[422333480,1778837441000,-196.84,0.00016712,2]
[422333478,1778837441000,-2000.0,0.00016658,2]
[422333484,1778837441000,-350.0,0.0001679,2]
[422333488,1778837441000,-578.20924308,0.00016886,2]
[422333482,1778837441000,-821.0,0.00016764,2]
[422333461,1778837441000,-207.886579,0.00016438,2]
[422333545,1778837441000,-151.0,0.00016886,2]
[422333543,1778837441000,-151.0,0.00016886,2]
[422333547,1778837441000,-151.0,0.00016886,2]
[422333592,1778837441000,-200.0,0.00017237,2]
[422333588,1778837441000,-417.0,0.00017206,2]
[422333594,1778837441000,-271.0,0.0001726,2]
[422333577,1778837441000,-417.0,0.00017174,2]
[422333596,1778837441000,-162.0,0.0001726,2]
[422333598,1778837441000,-417.0,0.00017269,2]
[422333601,1778837441000,-151.0,0.00017271,2]
[422333611,1778837441000,-417.0,0.00017304,2]
[422333590,1778837441000,-151.0,0.00017216,2]
[422333613,1778837441000,-151.0,0.00017326,2]
[422333618,1778837441000,-417.0,0.00017328,2]
[422333605,1778837441000,-418.0,0.00017287,2]
[422333603,1778837441000,-423.0,0.00017275,2]
[422333609,1778837441000,-417.0,0.00017304,2]
[422333646,1778837441000,-417.0,0.0001733,2]
[422333659,1778837441000,-417.0,0.00017345,2]
[422333655,1778837441000,-417.0,0.00017333,2]
[422333549,1778837441000,-151.0,0.00016941,2]
[422333615,1778837441000,-417.0,0.00017328,2]
[422333585,1778837441000,-417.0,0.00017204,2]
[422333607,1778837441000,-417.0,0.00017299,2]
[422333583,1778837441000,-350.15311,0.000172,2]
[422333534,1778837441000,-151.0,0.00016886,2]
[422333581,1778837441000,-350.15311,0.000172,2]
[422333539,1778837441000,-151.0,0.00016886,2]
[422333551,1778837441000,-300.0,0.00017025,2]
[422333541,1778837441000,-151.0,0.00016886,2]
[422333552,1778837441000,-300.0,0.00017025,2]
[422333554,1778837441000,-151.0,0.00017051,2]
[422333565,1778837441000,-418.0,0.00017137,2]
[422333567,1778837441000,-567.94017322,0.00017139,2]
[422333536,1778837441000,-151.0,0.00016886,2]
[422333553,1778837441000,-9942.27420984,0.00017029,2]
[422333556,1778837441000,-363.0,0.00017106,2]
[422333560,1778837441000,-151.0,0.00017106,2]
[422333558,1778837441000,-417.0,0.00017106,2]
[422333562,1778837441000,-423.0,0.00017111,2]
[422333571,1778837441000,-213.0,0.00017156,2]
[422333573,1778837441000,-151.0,0.00017161,2]
[422333579,1778837441000,-417.0,0.00017199,2]
[422333569,1778837441000,-417.0,0.00017147,2]
[422333575,1778837441000,-417.0,0.00017166,2]
[422333764,1778837442000,-198.14482845,0.000184,2]
[422333761,1778837442000,-473.44,0.000182,2]
[422333758,1778837442000,-198.14482845,0.000182,2]
[422333744,1778837442000,-200.0,0.00017982,2]
[422333742,1778837442000,-653.65084534,0.0001796,2]
[422333726,1778837442000,-512.13786049,0.00017674,2]
[422333728,1778837442000,-213.03721163,0.00017808,2]
[422333730,1778837442000,-151.0,0.00017808,2]
[422333723,1778837442000,-151.0,0.00017601,2]
[422333736,1778837442000,-187.0,0.00017825,2]
[422333748,1778837442000,-2005.9555727,0.00017982,2]
[422333791,1778837442000,-300.0,0.00018935,2]
[422333740,1778837442000,-293.84,0.00017881,2]
[422333763,1778837442000,-2000.0,0.00018323,2]
[422333773,1778837442000,-198.14482845,0.000185,2]
[422333750,1778837442000,-235.39597937,0.00017982,2]
[422333756,1778837442000,-2527.0,0.00018153,5]
[422333754,1778837442000,-350.0,0.00018,2]
[422333752,1778837442000,-198.14482845,0.00018,2]
[422333767,1778837442000,-1915.7,0.0001841,2]
[422333771,1778837442000,-150.0,0.00018458,7]
[422333769,1778837442000,-600.0,0.00018458,2]
[422333784,1778837442000,-350.0,0.00018814,2]
[422333775,1778837442000,-200.0,0.0001853,2]
[422333786,1778837442000,-500.0,0.0001887,2]
[422333789,1778837442000,-2087.84036619,0.0001887,2]
[422333776,1778837442000,-194.72792766,0.0001853,2]
[422333738,1778837442000,-190.76676357,0.00017869,30]
[422333746,1778837442000,-187.78006525,0.00017982,2]
[422333734,1778837442000,-350.0,0.00017816,2]
[422333675,1778837442000,-1000.0,0.00017377,2]
[422333721,1778837442000,-350.0,0.00017586,2]
[422333661,1778837442000,-254.81376594,0.00017377,2]
[422333663,1778837442000,-826.61580477,0.00017377,2]
[422333665,1778837442000,-481.74247802,0.00017377,2]
[422333667,1778837442000,-1000.0,0.00017377,2]
[422333690,1778837442000,-350.15312,0.00017377,2]
[422333669,1778837442000,-1000.0,0.00017377,2]
[422333673,1778837442000,-1000.0,0.00017377,2]
[422333692,1778837442000,-151.0,0.00017381,2]
[422333682,1778837442000,-190.43180029,0.00017377,2]
[422333671,1778837442000,-1000.0,0.00017377,2]
[422333680,1778837442000,-811.9791487,0.00017377,2]
[422333688,1778837442000,-350.15312,0.00017377,2]
[422333686,1778837442000,-350.15311,0.00017377,2]
[422333732,1778837442000,-151.0,0.00017808,2]
[422333684,1778837442000,-350.15311,0.00017377,2]
[422333697,1778837442000,-3532.64196497,0.000174,2]
[422333699,1778837442000,-2482.51885768,0.000174,2]
[422333705,1778837442000,-181.08010149,0.00017434,2]
[422333701,1778837442000,-441.98303079,0.000174,2]
[422333695,1778837442000,-1745.68681333,0.000174,2]
[422333703,1778837442000,-200.0,0.00017434,2]
[422333707,1778837442000,-180.7874486,0.00017434,2]
[422333711,1778837442000,-151.0,0.00017434,2]
[422333713,1778837442000,-151.0,0.00017436,2]
[422333709,1778837442000,-1934.38338737,0.00017434,2]
[422333717,1778837442000,-151.0,0.00017546,2]
[422333715,1778837442000,-151.0,0.00017491,2]
[422333719,1778837442000,-523.30553844,0.0001757,2]
[422333677,1778837442000,-1000.0,0.00017377,2]
[422333780,1778837442000,-198.14482845,0.000187,2]
[422333838,1778837442000,-190.0,0.00019,2]
[422333778,1778837442000,-2080.17592889,0.0001853,2]
[422333868,1778837442000,-285.34519104,0.00019349,2]
[422333864,1778837442000,-301.499792,0.00019178,2]
[422333862,1778837442000,-151.0,0.00019178,2]
[422333851,1778837442000,-1192.0,0.00019,2]
[422333861,1778837442000,-178.15177483,0.00019178,2]
[422333859,1778837442000,-2157.14243826,0.00019078,2]
[422333870,1778837442000,-599.60298507,0.00019625,2]
[422333872,1778837442000,-670.58624095,0.00019625,2]
[422333874,1778837442000,-200.0,0.00019626,2]
[422333876,1778837442000,-2236.95670848,0.00019626,2]
[422333878,1778837442000,-320.0,0.00019973,2]
[422333880,1778837442000,-2000.0,0.00019989,2]
[422333888,1778837442000,-1396.0,0.0002,2]
[422333866,1778837442000,-166.23,0.00019185,2]
[422333886,1778837442000,-182.3,0.0002,2]
[422333884,1778837442000,-8775.0,0.0002,2]
[422333882,1778837442000,-1980.0,0.0002,2]
[422333895,1778837442000,-400.0,0.0002,2]
[422333891,1778837442000,-308.0,0.0002,2]
[422333897,1778837442000,-880.0,0.0002,2]
[422333899,1778837442000,-190.0,0.0002,2]
[422333901,1778837442000,-465.0,0.0002,2]
[422333913,1778837442000,-193.725,0.0002,2]
[422333911,1778837442000,-985.0,0.0002,2]
[422333907,1778837442000,-845.0,0.0002,2]
[422333903,1778837442000,-4524.0,0.0002,2]
[422333905,1778837442000,-4333.0,0.0002,2]
[422333782,1778837442000,-156.76,0.00018798,2]
[422333893,1778837442000,-1326.0,0.0002,2]
[422333856,1778837442000,-278.71839749,0.00019078,2]
[422333909,1778837442000,-200.0,0.0002,10]
[422333852,1778837442000,-979.0,0.00019,2]
[422333854,1778837442000,-200.0,0.00019078,2]
[422333793,1778837442000,-300.0,0.00018935,2]
[422333795,1778837442000,-200.0,0.00018936,2]
[422333811,1778837442000,-150.716,0.00018936,2]
[422333803,1778837442000,-165.885,0.00018936,2]
[422333809,1778837442000,-150.833,0.00018936,2]
[422333799,1778837442000,-150.0,0.00018936,2]
[422333813,1778837442000,-150.0,0.00018936,2]
[422333802,1778837442000,-150.116,0.00018936,2]
[422333807,1778837442000,-242.781,0.00018936,2]
[422333805,1778837442000,-250.0,0.00018936,2]
[422333815,1778837442000,-281.15,0.00018936,2]
[422333817,1778837442000,-1270.0,0.00018936,2]
[422333819,1778837442000,-1223.0,0.00018936,2]
[422333798,1778837442000,-174.08,0.00018936,2]
[422333823,1778837442000,-1354.0,0.00018936,2]
[422333821,1778837442000,-926.0,0.00018936,2]
[422333840,1778837442000,-465.0,0.00019,2]
[422333844,1778837442000,-845.0,0.00019,2]
[422333836,1778837442000,-880.0,0.00019,2]
[422333842,1778837442000,-4333.0,0.00019,2]
[422333847,1778837442000,-985.0,0.00019,2]
[422333833,1778837442000,-548.7355334,0.00019,2]
[422333825,1778837442000,-161.45,0.0001895,2]
[422333841,1778837442000,-4524.0,0.00019,2]
[422333832,1778837442000,-1326.0,0.00019,2]
[422333849,1778837442000,-2266.0,0.00019,2]
[422333827,1778837442000,-3238.95483576,0.00019,2]
[422333830,1778837442000,-308.0,0.00019,2]
[422333989,1778837443000,-2266.0,0.00021,2]
[422333978,1778837443000,-465.0,0.00021,2]
[422333982,1778837443000,-4333.0,0.00021,2]
[422333984,1778837443000,-845.0,0.00021,2]
[422333996,1778837443000,-979.0,0.00021,2]
[422333964,1778837443000,-6111.0,0.00021,2]
[422333993,1778837443000,-1192.0,0.00021,2]
[422334000,1778837443000,-5113.34,0.00021,2]
[422333987,1778837443000,-985.0,0.00021,2]
[422333976,1778837443000,-190.0,0.00021,2]
[422333980,1778837443000,-4524.0,0.00021,2]
[422334017,1778837443000,-2830.51560034,0.00021,2]
[422333991,1778837443000,-525.11493027,0.00021,2]
[422334004,1778837443000,-296.0,0.00021,2]
[422334002,1778837443000,-10000.0,0.00021,2]
[422334020,1778837443000,-823.0,0.00021177,2]
[422334014,1778837443000,-10000.01,0.00021,2]
[422334011,1778837443000,-10000.01,0.00021,2]
[422334007,1778837443000,-1000.0,0.00021,2]
[422334008,1778837443000,-1067.2,0.00021,2]
[422334019,1778837443000,-793.0,0.00021123,7]
[422333973,1778837443000,-880.0,0.00021,2]
[422334010,1778837443000,-10000.01,0.00021,2]
[422333998,1778837443000,-161.0,0.00021,2]
[422333958,1778837443000,-1142.0,0.00020793,7]
[422333933,1778837443000,-150.0,0.00020367,30]
[422333962,1778837443000,-15000.0,0.00021,2]
[422334006,1778837443000,-150.24,0.00021,2]
[422333917,1778837443000,-12691.61,0.0002,2]
[422333919,1778837443000,-1192.0,0.0002,2]
[422333915,1778837443000,-2266.0,0.0002,2]
[422333921,1778837443000,-153.68370957,0.0002,20]
[422333923,1778837443000,-979.0,0.0002,2]
[422333925,1778837443000,-300.0,0.000201,10]
[422333929,1778837443000,-2319.72410669,0.00020174,2]
[422333927,1778837443000,-200.0,0.00020174,2]
[422333931,1778837443000,-222.49,0.00020209,2]
[422333942,1778837443000,-21801.77,0.00020548,2]
[422333949,1778837443000,-150.0,0.00020672,2]
[422333945,1778837443000,-178.15177483,0.00020548,2]
[422333935,1778837443000,-167.94460596,0.00020367,30]
[422333938,1778837443000,-1915.7,0.00020381,2]
[422333940,1778837443000,-512.13786049,0.00020448,2]
[422333947,1778837443000,-473.44,0.000206,2]
[422333951,1778837443000,-291.5897305,0.00020672,2]
[422333953,1778837443000,-200.0,0.00020722,2]
[422333967,1778837443000,-11403.54279978,0.00021,2]
[422333969,1778837443000,-308.0,0.00021,2]
[422333955,1778837443000,-2405.55389864,0.00020722,2]
[422333960,1778837443000,-655.0,0.00020948,2]
[422333971,1778837443000,-1326.0,0.00021,2]
[422334022,1778837443000,-200.0,0.0002127,2]
[422334009,1778837443000,-5000.01,0.00021,2]
[422334121,1778837443000,-187.0,0.00022263,2]
[422334084,1778837443000,-190.0,0.00022,2]
[422334075,1778837443000,-308.0,0.00022,2]
[422334106,1778837443000,-845.0,0.00022,2]
[422334145,1778837443000,-779.1,0.00022562,2]
[422334104,1778837443000,-4333.0,0.00022,2]
[422334110,1778837443000,-2266.0,0.00022,2]
[422334108,1778837443000,-985.0,0.00022,2]
[422334101,1778837443000,-4524.0,0.00022,2]
[422334112,1778837443000,-1192.0,0.00022,2]
[422334117,1778837443000,-243.593692,0.0002211,2]
[422334119,1778837443000,-1426.0,0.00022226,4]
[422334127,1778837443000,-695.39793187,0.00022364,2]
[422334115,1778837443000,-979.0,0.00022,2]
[422334125,1778837443000,-621.78829552,0.00022364,2]
[422334123,1778837443000,-1915.7,0.00022353,2]
[422334129,1778837443000,-200.0,0.00022366,2]
[422334132,1778837443000,-2682.57183977,0.00022366,2]
[422334134,1778837443000,-500.0,0.00022398,2]
[422334139,1778837443000,-206.8907977,0.00022407,2]
[422334137,1778837443000,-206.8907977,0.00022407,2]
[422334141,1778837443000,-347.91,0.00022466,2]
[422334143,1778837443000,-701.53,0.00022466,2]
[422334013,1778837443000,-10000.01,0.00021,2]
[422334080,1778837443000,-450.0,0.00022,2]
[422334082,1778837443000,-880.0,0.00022,2]
[422334099,1778837443000,-465.0,0.00022,2]
[422334072,1778837443000,-117920.28447772,0.00022,4]
[422334027,1778837443000,-1144.33,0.00021273,2]
[422334028,1778837443000,-3116.38,0.00021273,2]
[422334024,1778837443000,-2494.55939289,0.0002127,2]
[422334030,1778837443000,-985.0,0.00021357,2]
[422334035,1778837443000,-523.30553844,0.00021671,2]
[422334038,1778837443000,-2586.85809042,0.00021818,2]
[422334077,1778837443000,-1326.0,0.00022,2]
[422334044,1778837443000,-5000.0,0.00021918,2]
[422334048,1778837443000,-178.15177483,0.00021918,2]
[422334036,1778837443000,-200.0,0.00021818,2]
[422334040,1778837443000,-12691.61,0.0002191,2]
[422334042,1778837443000,-259.361985,0.00021918,2]
[422334033,1778837443000,-6462.31,0.0002137,2]
[422334046,1778837443000,-3074.41,0.00021918,2]
[422334070,1778837443000,-310.19961027,0.00022,30]
[422334068,1778837443000,-1354.0,0.00021936,2]
[422334065,1778837443000,-926.0,0.00021936,2]
[422334059,1778837443000,-150.0,0.00021936,2]
[422334057,1778837443000,-150.0,0.00021936,2]
[422334073,1778837443000,-1168.0,0.00022,4]
[422334061,1778837443000,-1270.0,0.00021936,2]
[422334055,1778837443000,-150.0,0.00021936,2]
[422334052,1778837443000,-150.0,0.00021936,2]
[422334050,1778837443000,-150.0,0.00021936,2]
[422334063,1778837443000,-1223.0,0.00021936,2]
[422334239,1778837444000,-1600.0,0.00023258,2]
[422334238,1778837444000,-1250.0,0.00023104,2]
[422334233,1778837444000,-1600.0,0.00023104,2]
[422334225,1778837444000,-2000.0,0.00023104,2]
[422334231,1778837444000,-1600.0,0.00023104,2]
[422334229,1778837444000,-1600.0,0.00023104,2]
[422334221,1778837444000,-2000.0,0.00023104,2]
[422334223,1778837444000,-2000.0,0.00023104,2]
[422334219,1778837444000,-2000.0,0.00023104,2]
[422334217,1778837444000,-979.0,0.00023,2]
[422334227,1778837444000,-1912.0,0.00023104,2]
[422334235,1778837444000,-1600.0,0.00023104,2]
[422334250,1778837444000,-1600.0,0.00023258,2]
[422334267,1778837444000,-2000.0,0.0002346,2]
[422334257,1778837444000,-1600.0,0.00023258,2]
[422334252,1778837444000,-1600.0,0.00023258,2]
[422334242,1778837444000,-1600.0,0.00023258,2]
[422334244,1778837444000,-1600.0,0.00023258,2]
[422334246,1778837444000,-1600.0,0.00023258,2]
[422334258,1778837444000,-1162.0,0.00023258,2]
[422334248,1778837444000,-1600.0,0.00023258,2]
[422334259,1778837444000,-178.15177483,0.00023288,2]
[422334260,1778837444000,-2000.0,0.0002346,2]
[422334265,1778837444000,-2000.0,0.0002346,2]
[422334263,1778837444000,-2000.0,0.0002346,2]
[422334264,1778837444000,-2000.0,0.0002346,2]
[422334215,1778837444000,-1192.0,0.00023,2]
[422334255,1778837444000,-1600.0,0.00023258,2]
[422334213,1778837444000,-151.0,0.00023,30]
[422334147,1778837444000,-2922.86,0.00022562,2]
[422334199,1778837444000,-158.0,0.00023,30]
[422334151,1778837444000,-473.44,0.000228,7]
[422334153,1778837444000,-200.0,0.00022914,2]
[422334155,1778837444000,-2781.82699784,0.00022914,2]
[422334149,1778837444000,-722.86,0.000228,10]
[422334162,1778837444000,-363.0,0.00023,30]
[422334158,1778837444000,-161.0,0.00022942,3]
[422334160,1778837444000,-200.0,0.00023,30]
[422334164,1778837444000,-308.0,0.00023,2]
[422334167,1778837444000,-1326.0,0.00023,2]
[422334180,1778837444000,-4333.0,0.00023,2]
[422334178,1778837444000,-4524.0,0.00023,2]
[422334184,1778837444000,-985.0,0.00023,2]
[422334169,1778837444000,-880.0,0.00023,2]
[422334171,1778837444000,-190.0,0.00023,2]
[422334173,1778837444000,-465.0,0.00023,2]
[422334182,1778837444000,-845.0,0.00023,2]
[422334175,1778837444000,-452.0,0.00023,2]
[422334191,1778837444000,-158.0,0.00023,30]
[422334186,1778837444000,-2266.0,0.00023,2]
[422334188,1778837444000,-158.0,0.00023,30]
[422334202,1778837444000,-158.0,0.00023,30]
[422334204,1778837444000,-151.0,0.00023,30]
[422334208,1778837444000,-151.0,0.00023,30]
[422334210,1778837444000,-151.0,0.00023,30]
[422334195,1778837444000,-158.0,0.00023,30]
[422334206,1778837444000,-151.0,0.00023,30]
[422334193,1778837444000,-158.0,0.00023,30]
[422334197,1778837444000,-158.0,0.00023,30]
[422334268,1778837444000,-2000.0,0.0002346,2]
[422334283,1778837444000,-1050.0,0.00023544,2]
[422334271,1778837444000,-2000.0,0.0002346,2]
[422334320,1778837444000,-993.0,0.00024,2]
[422334323,1778837444000,-2991.49051684,0.0002401,2]
[422334325,1778837444000,-304.42,0.0002411,2]
[422334327,1778837444000,-3752.8838473,0.0002421,2]
[422334340,1778837444000,-1000.0,0.00024658,2]
[422334330,1778837444000,-152.0,0.00024382,3]
[422334335,1778837444000,-177.468642,0.00024658,2]
[422334338,1778837444000,-177.468642,0.00024658,2]
[422334332,1778837444000,-7215.0,0.00024463,7]
[422334328,1778837444000,-1915.7,0.00024324,2]
[422334334,1778837444000,-177.468642,0.00024658,2]
[422334337,1778837444000,-177.468642,0.00024658,2]
[422334359,1778837444000,-1270.0,0.00024936,2]
[422334343,1778837444000,-151.0,0.00024658,2]
[422334342,1778837444000,-605.52,0.00024658,2]
[422334352,1778837444000,-150.0,0.00024936,2]
[422334345,1778837444000,-178.15177483,0.00024658,2]
[422334349,1778837444000,-151.0,0.00024933,7]
[422334347,1778837444000,-1961.73,0.00024658,2]
[422334354,1778837444000,-150.0,0.00024936,2]
[422334356,1778837444000,-150.0,0.00024936,2]
[422334362,1778837444000,-926.0,0.00024936,2]
[422334350,1778837444000,-150.0,0.00024936,2]
[422334364,1778837444000,-1354.0,0.00024936,2]
[422334361,1778837444000,-1223.0,0.00024936,2]
[422334366,1778837444000,-1961.73,0.00024946,7]
[422334272,1778837444000,-2000.0,0.0002346,2]
[422334322,1778837444000,-200.0,0.0002401,2]
[422334316,1778837444000,-2280.52333138,0.00024,2]
[422334357,1778837444000,-150.0,0.00024936,2]
[422334313,1778837444000,-862.0,0.00024,2]
[422334318,1778837444000,-1193.0,0.00024,2]
[422334262,1778837444000,-2000.0,0.0002346,2]
[422334269,1778837444000,-2000.0,0.0002346,2]
[422334274,1778837444000,-200.0,0.00023462,2]
[422334275,1778837444000,-2884.75459676,0.00023462,2]
[422334277,1778837444000,-1050.0,0.00023544,2]
[422334281,1778837444000,-1050.0,0.00023544,2]
[422334290,1778837444000,-968.0,0.00023544,2]
[422334292,1778837444000,-371.94364772,0.00023597,2]
[422334280,1778837444000,-1050.0,0.00023544,2]
[422334289,1778837444000,-1050.0,0.00023544,2]
[422334284,1778837444000,-1050.0,0.00023544,2]
[422334297,1778837444000,-150.0,0.00023973,2]
[422334278,1778837444000,-1050.0,0.00023544,2]
[422334298,1778837444000,-232.0,0.00023973,2]
[422334315,1778837444000,-989.0,0.00024,2]
[422334286,1778837444000,-1050.0,0.00023544,2]
[422334300,1778837444000,-310.0,0.00024,2]
[422334311,1778837444000,-4333.69718259,0.00024,2]
[422334308,1778837444000,-473.0,0.00024,2]
[422334306,1778837444000,-192.0,0.00024,2]
[422334310,1778837444000,-4538.88622569,0.00024,2]
[422334303,1778837444000,-500.0,0.00024,2]
[422334301,1778837444000,-1344.0,0.00024,2]
[422334304,1778837444000,-892.0,0.00024,2]
[422334287,1778837444000,-1050.0,0.00023544,2]
[422334293,1778837444000,-12691.61,0.0002382,2]
[422334295,1778837444000,-283.0,0.00023973,2]
[422334420,1778837445000,-168.44778477,0.00025485,2]
[422334434,1778837445000,-12691.61,0.0002573,7]
[422334422,1778837445000,-388.33051974,0.00025485,2]
[422334432,1778837445000,-529.9076766,0.00025727,2]
[422334440,1778837445000,-1144.33,0.00025786,2]
[422334426,1778837445000,-388.33051974,0.00025559,2]
[422334436,1778837445000,-523.30553844,0.00025773,2]
[422334428,1778837445000,-388.33051974,0.00025633,2]
[422334424,1778837445000,-1961.73,0.00025523,2]
[422334438,1778837445000,-388.33051974,0.00025781,7]
[422334444,1778837445000,-151.0,0.00025786,2]
[422334452,1778837445000,-151.0,0.00025786,2]
[422334454,1778837445000,-151.0,0.00025786,2]
[422334446,1778837445000,-151.0,0.00025786,2]
[422334456,1778837445000,-151.0,0.00025786,2]
[422334450,1778837445000,-151.0,0.00025786,2]
[422334448,1778837445000,-151.0,0.00025786,2]